bitfinex-derivatives/quotes_SOLF0:USTF0_20250530
["timestamp","ask_amount","ask_price","bid_price","bid_amount"]
[1748618226669,6.1868,161.6,161.58,0.04477236]
[1748618227273,6.1872,161.59,161.58,0.04477236]
[1748618228073,6.1878,161.58,161.54,6.1888]
[1748618228372,6.1878,161.58,161.52,12.78162566]
[1748618228373,32.0,161.61,161.52,2.0991]
[1748618228674,32.0,161.61,161.53,6.1893]
[1748618228873,32.0,161.61,161.52,2.0991]
[1748618229073,6.1882,161.57,161.55,0.04514855]
[1748618229373,38.1882,161.57,161.55,0.04514855]
[1748618230270,32.0,161.57,161.55,6.23374855]
[1748618230474,32.0,161.57,161.55,0.04514855]
[1748618230677,0.04749755,161.59,161.55,0.04514855]
[1748618231564,6.23489755,161.59,161.56,6.1881]
[1748618231971,0.04749755,161.59,161.55,0.04514855]
[1748618232572,6.1883,161.56,161.55,0.04514855]
[1748618232775,0.04749755,161.59,161.55,0.04514855]
[1748618233177,6.1882,161.57,161.55,0.04514855]
[1748618234175,0.04749755,161.59,161.55,0.04514855]
[1748618235377,6.1883,161.56,161.55,0.04514855]
[1748618235883,38.1883,161.56,161.55,0.04514855]
[1748618236079,32.0,161.56,161.48,2.0542]
[1748618236284,32.0,161.56,161.47,216.15039201]
[1748618236481,2.0072,161.55,161.45,10.68252566]
[1748618236681,12.68972566,161.55,161.41,10.68252566]
[1748618236885,12.68972566,161.55,161.44,6.1927]
[1748618237087,0.04285146,161.5,161.46,0.04460462]
[1748618237383,32.0,161.49,161.46,0.04460462]
[1748618238886,38.1912,161.49,161.46,0.04460462]
[1748618239185,32.0,161.49,161.46,0.04460462]
[1748618239685,6.1914,161.48,161.46,0.04460462]
[1748618240285,4.0204,161.48,161.34,50.18978729]
[1748618240788,4.0204,161.48,161.38,6.195]
[1748618241086,4.0204,161.48,161.34,50.18978729]
[1748618241290,6.1941,161.42,161.41,0.04572649]
[1748618241477,32.36,161.43,161.41,0.04572649]
[1748618241878,38.5536,161.43,161.41,0.04572649]
[1748618242077,32.36,161.43,161.41,0.04572649]
[1748618242385,0.04091429,161.45,161.42,6.1937]
[1748618242581,32.40091429,161.45,161.41,0.04572649]
[1748618243181,6.1932,161.44,161.41,6.23952649]
[1748618244688,6.1934,161.43,161.41,0.04572649]
[1748618244877,32.40091429,161.45,161.41,0.04572649]
[1748618245386,6.1932,161.44,161.41,6.23952649]
[1748618246087,32.40091429,161.45,161.41,0.04572649]
[1748618246682,38.59371429,161.45,161.42,6.1935]
[1748618246887,32.40091429,161.45,161.41,0.04572649]
[1748618247484,0.04091429,161.45,161.41,0.04572649]
[1748618247684,0.04091429,161.45,161.43,6.193]
[1748618247878,0.04091429,161.45,161.41,0.04572649]
[1748618248284,0.04091429,161.45,161.43,6.1931]
[1748618249083,0.04091429,161.45,161.42,6.1936]
[1748618249390,0.04091429,161.45,161.41,0.04572649]
[1748618249594,6.193,161.44,161.41,6.23962649]
[1748618249889,0.04091429,161.45,161.41,0.04572649]
[1748618250785,6.193,161.44,161.41,6.23962649]
[1748618251190,0.04091429,161.45,161.41,0.04572649]
[1748618251489,6.1937,161.42,161.41,0.04572649]
[1748618252281,32.38,161.44,161.41,0.04572649]
[1748618252991,6.1936,161.43,161.41,0.04572649]
[1748618253193,32.38,161.44,161.41,0.04572649]
[1748618253893,0.04091429,161.45,161.41,0.04572649]
[1748618254092,32.38,161.44,161.41,0.04572649]
[1748618254688,6.1937,161.42,161.41,0.04572649]
[1748618255089,32.38,161.44,161.41,0.04572649]
[1748618255595,6.1937,161.42,161.41,0.04572649]
[1748618260693,38.5735,161.43,161.41,0.04572649]
[1748618262491,0.04091429,161.45,161.41,0.04572649]
[1748618262995,0.04091429,161.45,161.42,6.1936]
[1748618263395,0.04091429,161.45,161.41,0.04572649]
[1748618263592,6.1932,161.44,161.41,6.23952649]
[1748618263794,0.04091429,161.45,161.41,0.04572649]
[1748618264196,6.1933,161.43,161.41,0.04572649]
[1748618264696,6.1931,161.44,161.41,0.04572649]
[1748618264897,0.04091429,161.45,161.41,0.04572649]
[1748618265191,0.04091429,161.45,161.41,6.23952649]
[1748618265397,6.1932,161.44,161.41,0.04572649]
[1748618265596,0.04091429,161.45,161.41,0.04572649]
[1748618266404,6.1937,161.42,161.41,0.04572649]
[1748618266692,32.4,161.42,161.34,255.94541765]
[1748618266886,6.1948,161.4,161.36,6.1959]
[1748618267198,32.4,161.42,161.35,2.0544]
[1748618267390,6.1948,161.4,161.37,6.1954]
[1748618267591,6.1948,161.4,161.35,2.0544]
[1748618267891,0.04750762,161.39,161.36,0.04641079]
[1748618268094,0.04750762,161.39,161.36,6.24211079]
[1748618268397,0.04750762,161.39,161.36,0.04641079]
[1748618268795,6.24240762,161.39,161.37,6.1954]
[1748618269294,6.24240762,161.39,161.36,6.24221079]
[1748618269491,6.24240762,161.39,161.36,0.04641079]
[1748618269997,0.04750762,161.39,161.36,0.04641079]
[1748618270700,6.24260762,161.39,161.36,6.24221079]
[1748618271290,6.1956,161.38,161.36,0.04641079]
[1748618271799,6.24250762,161.39,161.36,6.24231079]
[1748618272001,0.04750762,161.39,161.36,0.04641079]
[1748618272394,6.24240762,161.39,161.36,6.24221079]
[1748618272699,0.04750762,161.39,161.36,0.04641079]
[1748618272905,0.04750762,161.39,161.37,6.1956]
[1748618273200,0.04750762,161.39,161.36,0.04641079]
[1748618273594,6.24260762,161.39,161.36,6.24211079]
[1748618274805,6.24260762,161.39,161.37,6.1956]
[1748618275303,6.24260762,161.39,161.36,6.24231079]
[1748618275506,6.24260762,161.39,161.36,0.04641079]
[1748618275799,0.04750762,161.39,161.37,6.1954]
[1748618276398,6.24240762,161.39,161.37,6.1954]
[1748618276803,0.04750762,161.39,161.36,6.24221079]
[1748618277198,6.24250762,161.39,161.36,6.24221079]
[1748618277401,0.04750762,161.39,161.37,6.1956]
[1748618277904,6.24260762,161.39,161.37,6.1956]
[1748618278204,0.04750762,161.39,161.36,0.04641079]
[1748618278601,6.1956,161.37,161.36,0.04641079]
[1748618279301,32.48,161.38,161.36,0.04641079]
[1748618279900,32.48,161.38,161.36,6.24221079]
[1748618280299,32.48,161.38,161.36,0.04641079]
[1748618280500,38.6756,161.38,161.36,0.04641079]
[1748618281006,32.48,161.38,161.36,6.24221079]
[1748618281206,32.48,161.38,161.36,0.04641079]
[1748618281506,38.6754,161.38,161.36,6.24221079]
[1748618281802,32.48,161.38,161.36,0.04641079]
[1748618282209,32.48,161.38,161.37,6.1956]
[1748618282503,0.04750762,161.39,161.36,0.04641079]
[1748618282701,6.24250762,161.39,161.37,6.1954]
[1748618282908,0.04750762,161.39,161.36,0.04641079]
[1748618283405,6.1956,161.37,161.36,0.04641079]
[1748618288908,6.1954,161.38,161.36,0.04641079]
[1748618289810,6.24250762,161.39,161.36,6.24221079]
[1748618290112,6.24250762,161.39,161.36,0.04641079]
[1748618290113,0.04750762,161.39,161.36,0.04641079]
[1748618290407,0.04750762,161.39,161.37,6.1954]
[1748618291311,6.24240762,161.39,161.37,6.1954]
[1748618292508,0.04750762,161.39,161.38,6.1952]
[1748618292712,0.04750762,161.39,161.36,0.04641079]
[1748618293312,0.04750762,161.39,161.37,6.1953]
[1748618293611,0.04750762,161.39,161.36,0.04641079]
[1748618294113,0.04750762,161.39,161.37,6.1954]
[1748618294308,0.04750762,161.39,161.36,0.04641079]
[1748618295010,0.04750762,161.39,161.38,6.1952]
[1748618298017,6.24270762,161.39,161.36,0.04641079]
[1748618299115,6.1953,161.38,161.36,0.04641079]
[1748618299812,6.24250762,161.39,161.36,0.04641079]
[1748618300517,6.24250762,161.39,161.37,6.1954]
[1748618300717,0.04750762,161.39,161.36,0.04641079]
[1748618300911,0.04750762,161.39,161.38,6.1952]
[1748618303229,6.1935,161.43,161.41,6.194]
[1748618303724,6.1931,161.44,161.41,6.194]
[1748618303924,32.08,161.45,161.4,6.1943]
[1748618304127,6.1938,161.42,161.4,6.1943]
[1748618304322,6.1938,161.42,161.41,0.04481407]
[1748618304712,0.04714556,161.44,161.41,0.04481407]
[1748618305222,6.1936,161.43,161.41,0.04481407]
[1748618305421,6.1936,161.43,161.41,6.23891407]
[1748618305626,0.04714556,161.44,161.41,6.23891407]
[1748618305627,0.04714556,161.44,161.41,0.04481407]
[1748618306225,6.1937,161.42,161.41,0.04481407]
[1748618309730,6.1935,161.43,161.41,0.04481407]
[1748618309924,0.04714556,161.44,161.41,0.04481407]
[1748618310327,6.24024556,161.44,161.42,6.1935]
[1748618310526,6.24024556,161.44,161.41,0.04481407]
[1748618310734,6.24024556,161.44,161.41,6.23871407]
[1748618310735,6.1934,161.43,161.41,6.23871407]
[1748618310925,0.04714556,161.44,161.41,0.04481407]
[1748618311423,6.1937,161.42,161.41,0.04481407]
[1748618312820,6.1937,161.42,161.41,1.407e-05]
[1748618313135,6.1959,161.37,161.34,212.84058585]
[1748618313429,32.08,161.39,161.35,6.1962]
[1748618313625,6.1954,161.38,161.35,6.1962]
[1748618314026,0.04560474,161.38,161.35,0.04613763]
[1748618314628,6.196,161.36,161.35,0.04613763]
[1748618314826,0.04560474,161.38,161.35,0.04613763]
[1748618315931,0.04560474,161.38,161.37,6.1956]
[1748618316133,10.7048318,161.47,161.35,10.75096943]
[1748618316334,6.1941,161.42,161.39,6.1946]
[1748618316529,32.08,161.46,161.39,6.1946]
[1748618317432,0.04201399,161.44,161.41,0.04273605]
[1748618317630,6.194,161.42,161.41,0.04273605]
[1748618318027,0.04201399,161.44,161.41,0.04273605]
[1748618318828,6.1934,161.43,161.41,0.04273605]
[1748618319134,0.04201399,161.44,161.41,0.04273605]
[1748618319333,6.1937,161.42,161.41,0.04273605]
[1748618320331,6.1935,161.43,161.41,0.04273605]
[1748618321522,6.1937,161.42,161.41,0.04273605]
[1748618323934,6.1935,161.43,161.41,0.04273605]
[1748618324532,6.1935,161.43,161.41,6.23683605]
[1748618324736,6.1937,161.42,161.41,0.04273605]
[1748618327230,0.04201399,161.44,161.36,6.1958]
[1748618327231,6.195,161.39,161.36,6.1958]
[1748618327435,32.08,161.42,161.34,244.92058585]
[1748618328433,6.1951,161.39,161.36,6.23816997]
[1748618328835,6.1951,161.39,161.37,6.1956]
[1748618329639,0.04470408,161.4,161.36,0.04246997]
[1748618330340,0.04470408,161.4,161.37,6.1953]
[1748618330645,0.04470408,161.4,161.36,0.04246997]
[1748618331338,6.23920408,161.4,161.37,6.1953]
[1748618331534,6.23920408,161.4,161.36,0.04246997]
[1748618331840,0.04470408,161.4,161.38,6.195]
[1748618333238,0.04470408,161.4,161.39,6.1949]
[1748618335042,0.04470408,161.4,161.38,6.1951]
[1748618335442,0.04470408,161.4,161.36,0.04246997]
[1748618335843,6.1956,161.37,161.36,0.04246997]
[1748618336640,6.1975,161.33,161.31,2.0126]
[1748618336841,32.06,161.38,161.27,10.7048318]
[1748618337043,32.06,161.38,161.27,42.7648318]
[1748618337241,2.1372,161.37,161.28,6.1989]
[1748618337742,0.04514756,161.34,161.31,0.0408004]
[1748618337943,6.1975,161.32,161.31,0.0408004]
[1748618339051,0.04514756,161.34,161.31,0.0408004]
[1748618341053,0.04514756,161.34,161.32,6.1973]
[1748618341249,0.04514756,161.34,161.31,0.0408004]
[1748618341453,6.1975,161.32,161.31,0.0408004]
[1748618342558,32.06,161.33,161.25,4.1189]
[1748618342944,10.7048318,161.32,161.2,34.1873]
[1748618343149,10.7048318,161.29,161.17,32.06]
[1748618343345,34.0554,161.28,161.18,6.2027]
[1748618343548,0.04326415,161.25,161.22,0.04573705]
[1748618343746,32.06,161.24,161.14,32.06]
[1748618343957,4.2166,161.23,161.14,32.06]
[1748618344449,4.2166,161.23,161.16,6.2034]
[1748618344653,0.04040678,161.21,161.12,2.0433]
[1748618345152,0.04040678,161.21,161.13,2.1274]
[1748618347259,0.04040678,161.21,161.2,6.2022]
[1748618347454,0.04040678,161.21,161.11,155.9101]
[1748618347455,32.08,161.2,161.02,32.08]
[1748618347647,32.08,161.2,161.05,2.0376]
[1748618347648,0.04044233,161.13,161.05,2.0376]
[1748618348050,0.04044233,161.13,161.07,6.2069]
[1748618348357,0.04044233,161.13,161.05,12.7424318]
[1748618348553,0.04044233,161.13,161.06,32.08]
[1748618349748,0.04044233,161.13,161.1,6.2057]
[1748618349948,0.04044233,161.13,161.06,32.08]
[1748618350148,0.04044233,161.13,161.09,6.2063]
[1748618350355,0.04044233,161.13,161.06,32.08]
[1748618350756,0.04044233,161.13,161.11,6.2055]
[1748618351258,0.04044233,161.13,161.06,32.08]
[1748618351458,0.04044233,161.13,161.09,6.2063]
[1748618352163,0.04044233,161.13,161.1,6.206]
[1748618352359,0.04044233,161.13,161.06,32.08]
[1748618352754,0.04044233,161.13,161.11,6.2054]
[1748618353562,0.04044233,161.13,161.12,6.2052]
[1748618354870,0.04044233,161.13,161.06,32.08]
[1748618355866,0.04044233,161.13,161.12,6.2052]
[1748618356258,0.04044233,161.13,161.06,32.08]
[1748618356462,0.04044233,161.13,161.07,10.7048318]
[1748618356962,0.04044233,161.13,161.12,6.2052]
[1748618357164,0.04044233,161.13,161.07,10.7048318]
[1748618357471,0.04044233,161.13,161.11,6.2053]
[1748618357968,0.04044233,161.13,161.07,10.7048318]
[1748618358168,0.04044233,161.13,161.11,6.2054]
[1748618359171,0.04044233,161.13,161.07,10.7048318]
[1748618360773,6.24554233,161.13,161.1,6.2058]
[1748618362073,6.2052,161.12,161.09,6.2061]
[1748618362268,0.04044233,161.13,161.07,10.7048318]
[1748618362876,0.04044233,161.13,161.06,32.08]
[1748618363069,32.14044233,161.13,161.06,32.08]
[1748618363268,6.2057,161.11,161.08,6.2065]
[1748618364173,32.14044233,161.13,161.06,32.08]
[1748618364673,38.34554233,161.13,161.1,6.2059]
[1748618364861,32.14044233,161.13,161.06,32.08]
[1748618365469,0.04044233,161.13,161.07,10.7048318]
[1748618365867,535.34,161.21,161.1,10.7048318]
[1748618366068,567.44,161.21,161.11,34.2281]
[1748618366270,567.44,161.21,161.11,36.3644]
[1748618366471,6.2029,161.19,161.15,6.2038]
[1748618366781,6.2029,161.19,161.11,36.3644]
[1748618366978,6.2443645,161.19,161.15,6.24992111]
[1748618367178,6.2443645,161.19,161.15,0.04612111]
[1748618367179,0.0414645,161.19,161.15,0.04612111]
[1748618367572,6.2441645,161.19,161.15,0.04612111]
[1748618368076,6.2441645,161.19,161.16,6.2034]
[1748618369075,0.0414645,161.19,161.17,6.2031]
[1748618369780,0.0414645,161.19,161.16,6.2035]
[1748618369781,6.2440645,161.19,161.16,6.2035]
[1748618370583,6.2029,161.18,161.15,6.25002111]
[1748618371080,6.2035,161.17,161.15,0.04612111]
[1748618371269,0.0414645,161.19,161.15,0.04612111]
[1748618371675,6.2035,161.17,161.15,0.04612111]
[1748618372068,0.0414645,161.19,161.04,153.94]
[1748618372069,32.1,161.16,161.04,153.94]
[1748618372268,32.1,161.16,161.05,2.1077]
[1748618373169,0.04100771,161.13,161.05,2.1077]
[1748618373370,32.1,161.12,161.05,2.1077]
[1748618373873,6.2072,161.07,161.04,6.2081]
[1748618374376,6.2076,161.06,161.02,2.0427]
[1748618374586,6.2076,161.06,161.01,32.1]
[1748618374774,32.13971075,161.08,161.01,32.1]
[1748618375275,6.2079,161.06,161.01,32.1]
[1748618376078,6.2079,161.06,161.03,6.2085]
[1748618376281,6.2079,161.06,161.01,32.1]
[1748618376680,6.208,161.05,161.01,32.1]
[1748618376876,0.03993001,161.05,160.98,170.8512318]
[1748618377274,0.03993001,161.05,160.87,535.96]
[1748618377275,32.1,161.04,160.87,535.96]
[1748618377477,0.03987296,160.97,160.93,6.2181]
[1748618377779,0.03987296,160.97,160.94,6.2121]
[1748618378181,0.03987296,160.97,160.93,38.3181]
[1748618378379,0.03987296,160.97,160.96,6.2114]
[1748618378784,0.03987296,160.97,160.93,38.3181]
[1748618378785,0.03987296,160.97,160.95,6.2117]
[1748618379275,0.03987296,160.97,160.95,6.2115]
[1748618379482,0.03987296,160.97,160.93,38.3181]
[1748618379978,0.03987296,160.97,160.96,6.2114]
[1748618382879,7.296e-05,160.97,160.96,6.2114]
[1748618383188,6.2082,161.05,160.94,17.93429706]
[1748618383379,32.12,161.07,160.93,38.3181]
[1748618383679,32.12,161.07,161.0,6.2095]
[1748618383984,6.24772376,161.05,161.02,0.03987296]
[1748618384377,0.03942376,161.05,161.02,0.03987296]
[1748618384778,0.03942376,161.05,161.03,6.2087]
[1748618385383,0.03942376,161.05,161.02,0.03987296]
[1748618385579,0.03942376,161.05,161.03,6.2084]
[1748618385886,0.03942376,161.05,161.02,0.03987296]
[1748618386787,0.03942376,161.05,161.04,6.2083]
[1748618388181,0.03942376,161.05,161.02,32.15987296]
[1748618389181,0.03942376,161.05,161.02,38.36867296]
[1748618389689,0.03942376,161.05,161.03,6.2085]
[1748618389884,0.03942376,161.05,161.02,32.15987296]
[1748618390486,0.03942376,161.05,161.03,6.2085]
[1748618390886,0.03942376,161.05,161.04,6.2083]
[1748618391184,6.207,161.08,161.03,2.073]
[1748618391379,32.12,161.1,161.03,2.073]
[1748618391586,32.12,161.1,161.03,8.2816]
[1748618391885,32.12,161.1,161.03,2.073]
[1748618392084,6.2075,161.07,161.03,8.2814]
[1748618392588,6.2075,161.07,161.04,6.2083]
[1748618393487,6.2076,161.06,161.03,8.2816]
[1748618394682,0.04523325,161.08,161.03,2.073]
[1748618395089,6.25223325,161.08,161.05,6.2077]
[1748618395394,0.04523325,161.08,161.03,2.073]
[1748618395586,6.2077,161.06,161.03,8.2816]
[1748618395987,0.04523325,161.08,161.03,2.073]
[1748618396187,6.2079,161.05,161.03,2.073]
[1748618396490,0.04523325,161.08,161.03,2.073]
[1748618396892,6.2078,161.06,161.03,8.2814]
[1748618397181,0.04523325,161.08,161.03,2.073]
[1748618397987,6.2082,161.05,161.03,6.2087]
[1748618398384,6.2078,161.06,161.03,6.2087]
[1748618398590,0.04523325,161.08,161.03,6.2087]
[1748618398779,0.04523325,161.08,161.02,32.15987296]
[1748618398984,0.04523325,161.08,161.02,0.03987296]
[1748618399189,6.2085,161.04,161.02,0.03987296]
[1748618399390,0.04195262,161.05,161.02,0.03987296]
[1748618400089,6.2086,161.04,161.02,0.03987296]
[1748618400290,0.04195262,161.05,161.02,0.03987296]
[1748618400685,6.2087,161.03,161.02,0.03987296]
[1748618401283,2.04405262,161.05,160.96,38.3914]
[1748618401491,4.0471,161.05,160.94,2.066]
[1748618401695,4.0471,161.05,160.95,10.75411996]
[1748618401882,2.0021,161.05,160.95,10.75411996]
[1748618402087,0.04281055,161.02,160.98,0.03942376]
[1748618402390,0.04281055,161.02,160.98,10.79354372]
[1748618402592,0.04281055,161.02,160.99,2.1443]
[1748618403589,0.04281055,161.02,161.01,6.2095]
[1748618405695,32.18,161.09,161.05,6.2079]
[1748618405888,6.2078,161.06,161.02,2.1701]
[1748618406289,32.18,161.09,161.02,2.1701]
[1748618406689,6.25380367,161.07,161.04,0.04080754]
[1748618406988,6.25380367,161.07,161.04,6.24880754]
[1748618407193,6.25380367,161.07,161.04,0.04080754]
[1748618407490,6.25380367,161.07,161.04,6.24910754]
[1748618408196,0.04640367,161.07,161.05,6.2079]
[1748618408387,0.04640367,161.07,161.04,0.04080754]
[1748618408792,0.04640367,161.07,161.06,6.2075]
[1748618409590,0.04640367,161.07,161.04,0.04080754]
[1748618410091,6.25390367,161.07,161.04,6.24900754]
[1748618410485,0.04640367,161.07,161.05,6.2078]
[1748618411892,6.25360367,161.07,161.05,6.2078]
[1748618412097,0.04640367,161.07,161.04,0.04080754]
[1748618412489,0.04640367,161.07,161.04,10.7949275]
[1748618412989,0.04640367,161.07,161.06,6.2075]
[1748618414387,6.2052,161.12,161.1,6.2058]
[1748618414594,6.2052,161.12,161.06,2.1535]
[1748618414896,6.2047,161.14,161.07,10.75411996]
[1748618415097,36.347,161.15,161.07,10.75411996]
[1748618415299,0.04690935,161.13,161.1,6.2059]
[1748618415799,0.04690935,161.13,161.09,0.04745475]
[1748618416493,0.04690935,161.13,161.1,6.2057]
[1748618417001,0.04690935,161.13,161.11,6.2055]
[1748618417202,0.04690935,161.13,161.09,0.04745475]
[1748618417899,0.04690935,161.13,161.12,6.2052]
[1748618420090,32.18,161.18,161.15,6.204]
[1748618420399,2.1393,161.2,161.15,6.204]
[1748618420697,2.1393,161.2,161.1,2.1768]
[1748618420897,2.1393,161.2,161.09,32.18]
[1748618421105,6.2045,161.14,161.13,0.04417495]
[1748618421502,6.2,161.14,161.06,32.44]
[1748618421803,2.0531,161.13,161.03,32.44]
[1748618422000,2.0531,161.13,161.05,10.75411996]
[1748618422203,6.2054,161.12,161.05,10.75411996]
[1748618422504,0.04232281,161.1,161.09,6.2062]
[1748618422807,0.04232281,161.1,161.07,0.04487384]
[1748618423000,0.04232281,161.1,161.09,6.2064]
[1748618423206,0.04232281,161.1,161.07,0.04487384]
[1748618423809,0.04232281,161.1,161.09,6.2064]
[1748618427607,34.582,161.19,161.11,10.75411996]
[1748618428008,6.2045,161.14,161.11,16.95941996]
[1748618428511,0.0468392,161.14,161.12,6.205]
[1748618429207,0.0468392,161.14,161.11,10.79482484]
[1748618429606,0.0468392,161.14,161.13,6.2049]
[1748618430015,0.0468392,161.14,161.11,10.79482484]
[1748618430312,0.0468392,161.14,161.12,6.205]
[1748618430512,0.0468392,161.14,161.11,0.04070488]
[1748618431611,0.0468392,161.14,161.05,32.42]
[1748618431910,6.2072,161.07,161.04,6.2081]
[1748618432116,32.42,161.11,161.02,34.5799]
[1748618432406,4.0835,161.13,161.04,10.75411996]
[1748618432614,0.04488464,161.1,161.07,0.04564333]
[1748618433207,0.04488464,161.1,161.09,6.2064]
[1748618436212,0.04488464,161.1,161.08,6.2067]
[1748618437125,0.04488464,161.1,161.09,6.2064]
[1748618437526,0.04488464,161.1,161.07,0.04564333]
[1748618439127,0.04488464,161.1,161.08,6.2068]
[1748618440531,0.04488464,161.1,161.07,0.04564333]
[1748618440830,6.2067,161.09,161.07,0.04564333]
[1748618441029,0.04488464,161.1,161.07,0.04564333]
[1748618441230,0.04488464,161.1,161.07,6.25274333]
[1748618441432,6.2066,161.09,161.07,0.04564333]
[1748618442030,6.25108464,161.1,161.07,0.04564333]
[1748618442727,6.2065,161.09,161.07,0.04564333]
[1748618443628,6.25108464,161.1,161.07,6.25274333]
[1748618444629,6.2066,161.09,161.07,0.04564333]
[1748618444826,0.04488464,161.1,161.07,0.04564333]
[1748618445028,32.46488464,161.1,161.0,32.42]
[1748618445226,6.2084,161.04,161.01,6.2092]
[1748618445431,2.1392,161.09,161.01,6.2092]
[1748618445629,2.1392,161.09,161.0,32.42]
[1748618446030,0.04225094,161.06,161.03,0.04265818]
[1748618446430,0.04225094,161.06,161.04,6.208]
[1748618446630,0.04225094,161.06,161.03,0.04265818]
[1748618447528,0.04225094,161.06,161.05,6.2079]
[1748618448732,32.44,161.13,161.09,6.2061]
[1748618448936,32.44,161.13,161.04,47.46651996]
[1748618449130,6.2054,161.12,161.04,47.46651996]
[1748618449330,6.2054,161.12,161.09,6.2062]
[1748618449837,6.2521495,161.12,161.09,6.25081377]
[1748618450035,6.2056,161.11,161.09,0.04461377]
[1748618450429,0.0467495,161.12,161.09,0.04461377]
[1748618451533,0.0467495,161.12,161.1,6.2058]
[1748618452635,6.2520495,161.12,161.1,6.2058]
[1748618452833,0.0467495,161.12,161.1,6.2058]
[1748618454035,0.0467495,161.12,161.09,6.25091377]
[1748618454231,0.0467495,161.12,161.09,0.04461377]
[1748618454840,0.0467495,161.12,160.93,355.0]
[1748618454841,32.6267495,161.12,161.0,10.75411996]
[1748618455139,2.0182,161.11,161.01,32.58]
[1748618455636,2.0182,161.11,161.03,6.2084]
[1748618455832,6.2076,161.06,161.05,0.03979097]
[1748618456036,0.03929605,161.09,161.05,0.03979097]
[1748618456940,6.2074,161.07,161.05,0.03979097]
[1748618457633,6.2075,161.06,161.05,0.03979097]
[1748618461549,34.691,161.08,160.98,34.691]
[1748618462040,6.2087,161.03,160.98,34.691]
[1748618462349,34.691,161.08,160.98,34.691]
[1748618462647,0.04630654,161.05,161.01,0.04479468]
[1748618463148,6.2091,161.02,161.01,0.04479468]
[1748618463743,74.95520532,161.0,160.99,6.2099]
[1748618464947,74.95520532,161.0,160.98,6.2105]
[1748618465245,74.95520532,161.0,160.95,43.35411996]
[1748618465449,81.16510532,161.0,160.97,6.2108]
[1748618465647,74.95520532,161.0,160.95,43.35411996]
[1748618466148,6.2103,160.99,160.96,6.2113]
[1748618466543,74.95520532,161.0,160.94,4.0904]
[1748618466742,74.95520532,161.0,160.94,1.9882]
[1748618467346,74.95520532,161.0,160.95,6.2118]
[1748618467849,6.2109,160.98,160.95,6.2118]
[1748618468049,6.2109,160.98,160.96,6.2113]
[1748618468449,6.2115,160.96,160.92,32.6]
[1748618468655,0.0395907,160.96,160.92,32.6]
[1748618468950,0.0395907,160.96,160.93,10.75411996]
[1748618469150,74.95520532,161.0,160.98,6.2104]
[1748618469448,74.95520532,161.0,160.93,10.75411996]
[1748618469644,74.95520532,161.0,160.98,6.2104]
[1748618469841,74.95520532,161.0,160.93,10.75411996]
[1748618470048,0.03951799,160.98,160.96,10.75411996]
[1748618470253,6.2087,161.03,160.97,47.39141996]
[1748618470452,6.2087,161.03,160.98,2.1721]
[1748618470646,6.2085,161.04,161.01,6.2094]
[1748618471350,6.25220898,161.04,161.01,6.25691943]
[1748618471751,0.04370898,161.04,161.01,0.04751943]
[1748618472346,6.25230898,161.04,161.01,6.25681943]
[1748618472753,6.2091,161.02,161.01,0.04751943]
[1748618472956,0.04370898,161.04,161.01,0.04751943]
[1748618473455,6.2089,161.03,161.01,0.04751943]
[1748618474151,6.2089,161.03,161.01,6.25691943]
[1748618474452,6.25210898,161.04,161.01,6.25691943]
[1748618474653,0.04370898,161.04,161.02,6.209]
[1748618475047,6.25200898,161.04,161.01,0.04751943]
[1748618475350,6.25200898,161.04,161.01,6.25681943]
[1748618475959,0.04370898,161.04,161.01,0.04751943]
[1748618476451,0.04370898,161.04,161.02,6.2087]
[1748618476654,0.04370898,161.04,161.01,0.04751943]
[1748618477249,0.04370898,161.04,161.02,10.75411996]
[1748618477550,0.04370898,161.04,161.03,6.2087]
[1748618478744,0.04370898,161.04,161.02,16.96301996]
[1748618478949,0.04370898,161.04,161.01,0.04751943]
[1748618479955,6.2091,161.02,161.01,0.04751943]
[1748618480158,0.04370898,161.04,161.01,0.04751943]
[1748618481259,6.2091,161.02,161.01,0.04751943]
[1748618482155,6.2088,161.03,161.01,0.04751943]
[1748618484252,0.04370898,161.04,161.01,0.04751943]
[1748618484454,0.04370898,161.04,161.01,10.80163939]
[1748618484658,0.04370898,161.04,161.03,6.2087]
[1748618488451,0.04370898,161.04,161.02,6.2089]